fUSD/lending_fUSD_20250215
["ID","MTS","AMOUNT","RATE_DAILY","PERIOD"]
[353155378,1739614258517,-500.0,0.00012958,2]
[353155379,1739614258529,-564.9,0.00012958,2]
[353155380,1739614258538,-500.0,0.00012958,2]
[353155381,1739614258548,-500.0,0.00012958,2]
[353155382,1739614258557,-290.02,0.00012958,2]
[353155383,1739614258567,-500.0,0.00012958,2]
[353155384,1739614258577,-500.0,0.00012958,2]
[353155385,1739614258586,-500.0,0.00012958,2]
[353155386,1739614258596,-500.0,0.00012958,2]
[353155387,1739614258605,-320.9,0.00012958,2]
[353155388,1739614258615,-467.18,0.00012958,2]
[353155389,1739614258624,-172.07,0.00012958,2]
[353155390,1739614258633,-500.0,0.00012958,2]
[353155391,1739614258642,-261.36,0.00012958,2]
[353155392,1739614258651,-246.34,0.00012958,2]
[353155393,1739614258660,-500.0,0.00012958,2]
[353155394,1739614258670,-186.99,0.00012958,2]
[353155395,1739614258679,-500.0,0.00012958,2]
[353155396,1739614258688,-500.0,0.00012958,2]
[353155397,1739614258697,-510.74,0.00012958,2]
[353155398,1739614258707,-500.0,0.00012958,2]
[353155399,1739614258716,-220.01,0.00012958,2]
[353155400,1739614258725,-500.0,0.00012958,2]
[353155401,1739614258736,-502.52,0.00012958,2]
[353155402,1739614258746,-500.0,0.00012958,2]
[353155403,1739614258756,-500.0,0.00012958,2]
[353155404,1739614258767,-500.0,0.00012958,2]
[353155405,1739614258776,-500.0,0.00012958,2]
[353155406,1739614258787,-537.27,0.00012958,2]
[353155407,1739614258797,-210.8,0.00012958,2]
[353155408,1739614258806,-500.0,0.00012958,2]
[353155409,1739614258816,-500.0,0.00012958,2]
[353155410,1739614258825,-381.88,0.00012958,2]
[353155411,1739614258836,-357.21660486,0.00012958,2]
[353155412,1739614258847,-178.49,0.00012958,2]
[353155413,1739614258856,-500.0,0.00012958,2]
[353155414,1739614258866,-500.0,0.00012958,2]
[353155415,1739614258877,-500.0,0.00012958,2]
[353155416,1739614258886,-500.0,0.00012958,2]
[353155417,1739614258895,-500.0,0.00012958,2]
[353155418,1739614258905,-500.0,0.00012958,2]
[353155419,1739614258915,-506.56,0.00012958,2]
[353155420,1739614258925,-551.96,0.00012958,2]
[353155421,1739614258934,-595.24,0.00012958,2]
[353155422,1739614258944,-500.0,0.00012958,2]
[353155423,1739614258954,-500.0,0.00012958,2]
[353155424,1739614258963,-205.84,0.00012958,2]
[353155425,1739614258973,-500.0,0.00012958,2]
[353155426,1739614258983,-500.0,0.00012958,2]
[353155427,1739614258992,-500.0,0.00012958,2]
[353155428,1739614259002,-370.98,0.00012958,2]
[353155429,1739614259011,-454.36,0.00012958,2]
[353155430,1739614259022,-500.0,0.00012958,2]
[353155431,1739614259032,-500.0,0.00012958,2]
[353155432,1739614259041,-500.0,0.00012958,2]
[353155433,1739614259052,-190.2,0.00012958,2]
[353155434,1739614259061,-500.0,0.00012958,2]
[353155435,1739614259070,-500.0,0.00012958,2]
[353155436,1739614259080,-500.0,0.00012958,2]
[353155437,1739614259090,-500.0,0.00012958,2]
[353155438,1739614259100,-500.0,0.00012958,2]
[353155439,1739614259111,-500.0,0.00012958,2]
[353155440,1739614259121,-500.0,0.00012958,2]
[353155441,1739614259130,-500.0,0.00012958,2]
[353155442,1739614259141,-500.0,0.00012958,2]
[353155443,1739614259150,-215.51,0.00012958,2]
[353155444,1739614259160,-500.0,0.00012958,2]
[353155445,1739614259169,-500.0,0.00012958,2]
[353155446,1739614259179,-500.0,0.00012958,2]
[353155447,1739614259190,-500.0,0.00012958,2]
[353155448,1739614259200,-500.0,0.00012958,2]
[353155449,1739614259211,-500.0,0.00012958,2]
[353155450,1739614259221,-500.0,0.00012958,2]
[353155451,1739614259231,-326.29,0.00012958,2]
[353155452,1739614259240,-500.0,0.00012958,2]
[353155453,1739614259249,-500.0,0.00012958,2]
[353155454,1739614259258,-500.0,0.00012958,2]
[353155455,1739614259267,-500.0,0.00012958,2]
[353155456,1739614259278,-500.0,0.00012958,2]
[353155457,1739614259287,-500.0,0.00012958,2]
[353155458,1739614259296,-500.0,0.00012958,2]
[353155459,1739614259306,-500.0,0.00012958,2]
[353155460,1739614259315,-500.0,0.00012958,2]
[353155461,1739614259324,-500.0,0.00012958,2]
[353155462,1739614259333,-165.23,0.00012958,2]
[353155463,1739614259343,-318.7,0.00012958,2]
[353155464,1739614259353,-500.0,0.00012958,2]
[353155465,1739614259362,-1003.21,0.00012958,2]
[353155466,1739614259371,-500.0,0.00012958,2]
[353155467,1739614259380,-512.34275861,0.00012958,2]
[353155468,1739614259392,-500.0,0.00012958,2]
[353155469,1739614259404,-500.0,0.00012958,2]
[353155470,1739614259415,-500.0,0.00012958,2]
[353155471,1739614259424,-500.0,0.00012958,2]
[353155472,1739614259435,-500.0,0.00012958,2]
[353155473,1739614259444,-219.05399199,0.00012958,2]
[353155474,1739614259454,-500.0,0.00012958,2]
[353155475,1739614259463,-500.0,0.00012958,2]
[353155476,1739614259474,-500.0,0.00012958,2]
[353155477,1739614259484,-500.0,0.00012958,2]
[353155478,1739614259493,-500.0,0.00012958,2]
[353155479,1739614259502,-636.66,0.00012958,2]
[353155480,1739614259511,-514.30115801,0.00012958,2]
[353155481,1739614259520,-500.0,0.00012958,2]
[353155482,1739614259530,-334.11,0.00012958,2]
[353155483,1739614259539,-541.55,0.00012958,2]
[353155484,1739614259548,-500.0,0.00012958,2]
[353155485,1739614259558,-500.0,0.00012958,2]
[353155486,1739614259567,-1044.13,0.00012958,2]
[353155487,1739614259577,-500.0,0.00012958,2]
[353155488,1739614259586,-500.0,0.00012958,2]
[353155489,1739614259595,-2360.06,0.00012958,2]
[353155490,1739614259604,-500.0,0.00012958,2]
[353155491,1739614259614,-500.0,0.00012958,2]
[353155492,1739614259623,-560.21,0.00012958,2]
[353155493,1739614259633,-500.0,0.00012958,2]
[353155494,1739614259642,-500.0,0.00012958,2]
[353155495,1739614259701,-328.3,0.00012958,2]
[353155496,1739614259711,-500.0,0.00012958,2]
[353155497,1739614259720,-500.0,0.00012958,2]
[353155498,1739614259731,-500.0,0.00012958,2]
[353155499,1739614259740,-500.0,0.00012958,2]
[353155500,1739614259749,-500.0,0.00012958,2]
[353155501,1739614259759,-500.0,0.00012958,2]
[353155502,1739614259769,-748.23,0.00012958,2]
[353155503,1739614259778,-500.0,0.00012958,2]
[353155504,1739614259788,-644.5,0.00012958,2]
[353155505,1739614259798,-500.0,0.00012958,2]
[353155506,1739614259807,-557.5,0.00012958,2]
[353155507,1739614259817,-500.0,0.00012958,2]
[353155508,1739614259826,-500.0,0.00012958,2]
[353155509,1739614259835,-500.0,0.00012958,2]
[353155510,1739614259845,-500.0,0.00012958,2]
[353155511,1739614259855,-500.0,0.00012958,2]
[353155512,1739614259865,-500.0,0.00012958,2]
[353155513,1739614259874,-500.0,0.00012958,2]
[353155514,1739614259885,-500.0,0.00012958,2]
[353155515,1739614259894,-500.0,0.00012958,2]
[353155516,1739614259905,-500.0,0.00012958,2]
[353155517,1739614259915,-500.0,0.00012958,2]
[353155518,1739614259925,-591.63122497,0.00012958,2]
[353155519,1739614259934,-510.98,0.00012958,2]
[353155520,1739614259944,-500.0,0.00012958,2]
[353155521,1739614259953,-500.0,0.00012958,2]
[353155522,1739614259962,-500.0,0.00012958,2]
[353155523,1739614259972,-500.0,0.00012958,2]
[353155524,1739614259981,-500.0,0.00012958,2]
[353155525,1739614259990,-500.0,0.00012958,2]
[353155526,1739614260000,-500.0,0.00012958,2]
[353155527,1739614260009,-500.0,0.00012958,2]
[353155528,1739614260020,-791.07,0.00012958,2]
[353155529,1739614260029,-500.0,0.00012958,2]
[353155530,1739614260038,-500.0,0.00012958,2]
[353155531,1739614260047,-245.88,0.00012958,2]
[353155532,1739614260057,-500.0,0.00012958,2]
[353155533,1739614260067,-500.0,0.00012958,2]
[353155534,1739614260076,-500.0,0.00012958,2]
[353155535,1739614260085,-500.0,0.00012958,2]
[353155536,1739614260095,-500.0,0.00012958,2]
[353155537,1739614260104,-500.0,0.00012958,2]
[353155538,1739614260114,-500.0,0.00012958,2]
[353155539,1739614260123,-500.0,0.00012958,2]
[353155540,1739614260133,-628.58,0.00012958,2]
[353155541,1739614260144,-500.0,0.00012958,2]
[353155542,1739614260153,-500.0,0.00012958,2]
[353155543,1739614260163,-500.0,0.00012958,2]
[353155544,1739614260172,-500.0,0.00012958,2]
[353155545,1739614260181,-861.68,0.00012958,2]
[353155546,1739614260190,-500.0,0.00012958,2]
[353155547,1739614260200,-500.0,0.00012958,2]
[353155548,1739614260209,-500.0,0.00012958,2]
[353155549,1739614260218,-500.0,0.00012958,2]
[353155550,1739614260228,-500.0,0.00012958,2]
[353155551,1739614260237,-500.0,0.00012958,2]
[353155552,1739614260246,-500.0,0.00012958,2]
[353155553,1739614260256,-500.0,0.00012958,2]
[353155554,1739614260265,-997.83,0.00012958,2]
[353155555,1739614260275,-655.17,0.00012958,2]
[353155556,1739614260285,-262.42707873,0.00012958,2]
[353155557,1739614260294,-500.0,0.00012958,2]
[353155558,1739614260304,-530.14,0.00012958,2]
[353155559,1739614260313,-500.0,0.00012958,2]
[353155560,1739614260322,-500.0,0.00012958,2]
[353155561,1739614260331,-500.0,0.00012958,2]
[353155562,1739614260340,-500.0,0.00012958,2]
[353155563,1739614260349,-500.0,0.00012958,2]
[353155564,1739614260358,-736.8,0.00012958,2]
[353155565,1739614260368,-500.0,0.00012958,2]
[353155566,1739614260377,-500.0,0.00012958,2]
[353155567,1739614260387,-500.0,0.00012958,2]
[353155568,1739614260400,-500.0,0.00012958,2]
[353155569,1739614260409,-500.0,0.00012958,2]
[353155570,1739614260418,-500.0,0.00012958,2]
[353155571,1739614260428,-500.0,0.00012958,2]
[353155572,1739614260439,-500.0,0.00012958,2]
[353155573,1739614260448,-500.0,0.00012958,2]
[353155574,1739614260457,-500.0,0.00012958,2]
[353155575,1739614260466,-500.0,0.00012958,2]
[353155576,1739614260477,-500.0,0.00012958,2]
[353155577,1739614260487,-500.0,0.00012958,2]
[353155578,1739614260496,-500.0,0.00012958,2]
[353155579,1739614260506,-500.0,0.00012958,2]
[353155580,1739614260515,-500.0,0.00012958,2]
[353155581,1739614260524,-500.0,0.00012958,2]
[353155582,1739614260533,-500.0,0.00012958,2]
[353155583,1739614260543,-500.0,0.00012958,2]
[353155584,1739614260552,-500.0,0.00012958,2]
[353155585,1739614260562,-500.0,0.00012958,2]
[353155586,1739614260571,-500.0,0.00012958,2]
[353155587,1739614260580,-693.79,0.00012958,2]
[353155588,1739614260590,-500.0,0.00012958,2]
[353155589,1739614260600,-1153.16,0.00012958,2]
[353155590,1739614260609,-500.0,0.00012958,2]
[353155591,1739614260620,-500.0,0.00012958,2]
[353155592,1739614260630,-500.0,0.00012958,2]
[353155593,1739614260641,-500.0,0.00012958,2]
[353155594,1739614260651,-500.0,0.00012958,2]
[353155595,1739614260660,-500.0,0.00012958,2]
[353155596,1739614260670,-500.0,0.00012958,2]
[353155597,1739614260681,-500.0,0.00012958,2]
[353155598,1739614260691,-500.0,0.00012958,2]
[353155599,1739614260702,-500.0,0.00012958,2]
[353155600,1739614260711,-500.0,0.00012958,2]
[353155601,1739614260720,-500.0,0.00012958,2]
[353155602,1739614260730,-500.0,0.00012958,2]
[353155603,1739614260739,-500.0,0.00012958,2]
[353155604,1739614260749,-300.84,0.00012958,2]
[353155605,1739614260759,-500.0,0.00012958,2]
[353155606,1739614260768,-500.0,0.00012958,2]
[353155607,1739614260779,-587.83,0.00012958,2]
[353155608,1739614260790,-500.0,0.00012958,2]
[353155609,1739614260799,-500.0,0.00012958,2]
[353155610,1739614260809,-500.0,0.00012958,2]
[353155611,1739614260818,-500.0,0.00012958,2]
[353155612,1739614260827,-166.36,0.00012959,2]
[353155613,1739614260837,-334.21,0.00012959,2]
[353155614,1739614260846,-526.41,0.00012959,2]
[353155615,1739614260856,-248.25,0.00012959,2]
[353155616,1739614260865,-700.0,0.0001297,2]
[353155617,1739614260874,-151.7415088,0.00012973,2]
[353155618,1739614260883,-163.6449409,0.0001298,2]
[353155619,1739614260893,-150.0,0.00012989,2]
[353155620,1739614260902,-500.0,0.00012999,2]
[353155621,1739614260913,-544.1,0.00012999,2]
[353155622,1739614260923,-500.0,0.00012999,2]
[353155623,1739614260932,-500.0,0.00012999,2]
[353155624,1739614260942,-500.0,0.00012999,2]
[353155625,1739614260953,-500.0,0.00012999,2]
[353155626,1739614260962,-500.0,0.00012999,2]
[353155627,1739614260972,-574.6,0.00012999,2]
[353155628,1739614260981,-574.6,0.00012999,2]
[353155629,1739614260991,-574.6,0.00012999,2]
[353155630,1739614261001,-627.5284558,0.00012999,2]
[353155631,1739614261011,-500.0,0.00012999,2]
[353155632,1739614261021,-500.0,0.00012999,2]
[353155633,1739614261030,-1232.06,0.00012999,2]
[353155634,1739614261040,-1232.06,0.00012999,2]
[353155635,1739614261050,-1726.0,0.00013,2]
[353155636,1739614261059,-556835.66928539,0.00013,2]
[353155637,1739614261068,-15367.69241808,0.00013,2]
[353155638,1739614261077,-7757.13094971,0.00013,2]
[353155639,1739614261086,-500.0,0.00013,2]
[353155640,1739614261095,-550.0,0.00013,2]
[353155641,1739614261104,-1392.51,0.00013021,2]
[353155642,1739614261113,-500.0,0.00013021,2]
[353155643,1739614261123,-500.0,0.00013021,2]
[353155644,1739614261133,-500.0,0.00013021,2]
[353155645,1739614261142,-500.0,0.00013021,2]
[353155646,1739614261151,-500.0,0.00013021,2]
[353155647,1739614261160,-500.0,0.00013021,2]
[353155648,1739614261169,-500.0,0.00013021,2]
[353155649,1739614261179,-500.0,0.00013021,2]
[353155650,1739614261189,-500.0,0.00013021,2]
[353155651,1739614261198,-1000.0,0.00013021,2]
[353155652,1739614261208,-590.41,0.00013021,2]
[353155653,1739614261218,-500.0,0.00013021,2]
[353155654,1739614261227,-500.0,0.00013021,2]
[353155655,1739614261236,-500.0,0.00013021,2]
[353155656,1739614261246,-500.0,0.00013039,2]
[353155657,1739614261256,-500.0,0.00013039,2]
[353155658,1739614261265,-1314.866743,0.00013039,2]
[353155659,1739614261275,-500.0,0.00013039,2]
[353155660,1739614261284,-500.0,0.00013039,2]
[353155661,1739614261293,-315.58,0.00013039,2]
[353155662,1739614261303,-500.0,0.00013039,2]
[353155663,1739614261312,-500.0,0.00013039,2]
[353155664,1739614261321,-500.0,0.00013039,2]
[353155665,1739614261330,-500.0,0.00013039,2]
[353155666,1739614261339,-1024.26,0.00013039,2]
[353155667,1739614261348,-500.0,0.00013039,2]
[353155668,1739614261358,-1265.427403,0.00013039,2]
[353155669,1739614261367,-500.0,0.00013039,2]
[353155670,1739614261377,-1365.1,0.00013039,2]
[353155671,1739614261387,-500.0,0.00013039,2]
[353155672,1739614261400,-627.95,0.00013039,2]
[353155673,1739614261409,-500.0,0.00013039,2]
[353155674,1739614261419,-507.63,0.00013039,2]
[353155675,1739614261427,-500.0,0.00013039,2]
[353155676,1739614261439,-500.0,0.00013039,2]
[353155677,1739614261448,-500.0,0.00013039,2]
[353155678,1739614261457,-554.84,0.00013039,2]
[353155679,1739614261466,-500.0,0.00013039,2]
[353155680,1739614261477,-500.0,0.00013039,2]
[353155681,1739614261486,-1011.9,0.00013039,2]
[353155682,1739614261495,-862.31,0.00013039,2]
[353155683,1739614261504,-500.0,0.00013039,2]
[353155684,1739614261514,-500.0,0.00013039,2]
[353155685,1739614261523,-555.17,0.00013039,2]
[353155686,1739614261533,-639.43,0.00013039,2]
[353155687,1739614261542,-500.0,0.00013039,2]
[353155688,1739614261551,-500.0,0.00013039,2]
[353155689,1739614261560,-500.0,0.00013039,2]
[353155690,1739614261569,-602.18,0.00013039,2]
[353155691,1739614261578,-500.0,0.00013039,2]
[353155692,1739614261588,-500.0,0.00013039,2]
[353155693,1739614261597,-990.22,0.00013039,2]
[353155694,1739614261606,-1232.06,0.00013039,2]
[353155695,1739614261615,-500.0,0.00013039,2]
[353155696,1739614261624,-500.0,0.00013039,2]
[353155697,1739614261633,-500.0,0.00013039,2]
[353155698,1739614261643,-500.0,0.00013039,2]
[353155699,1739614261652,-528.12,0.00013039,2]
[353155700,1739614261662,-500.0,0.00013039,2]
[353155701,1739614261672,-750.83,0.00013039,2]
[353155702,1739614261682,-500.0,0.00013039,2]
[353155703,1739614261692,-588.39,0.00013039,2]
[353155704,1739614261702,-500.0,0.00013039,2]
[353155705,1739614261711,-500.0,0.00013039,2]
[353155706,1739614261721,-500.0,0.00013039,2]
[353155707,1739614261731,-500.0,0.00013039,2]
[353155708,1739614261741,-500.0,0.00013039,2]
[353155709,1739614261752,-1454.86,0.00013039,2]
[353155710,1739614261763,-500.0,0.00013039,2]
[353155711,1739614261772,-500.0,0.00013039,2]
[353155712,1739614261783,-500.0,0.00013039,2]
[353155713,1739614261793,-500.0,0.00013039,2]
[353155714,1739614261804,-500.0,0.00013039,2]
[353155715,1739614261813,-500.0,0.00013039,2]
[353155716,1739614261823,-902.94,0.00013039,2]
[353155717,1739614261833,-500.0,0.00013039,2]
[353155718,1739614261842,-500.0,0.0001304,2]
[353155719,1739614261853,-500.0,0.0001304,2]
[353155720,1739614261862,-317.82,0.0001304,2]
[353155721,1739614261871,-548.3,0.0001304,2]
[353155722,1739614261881,-500.0,0.0001304,2]
[353155723,1739614261890,-292.7,0.0001304,2]
[353155724,1739614261900,-500.0,0.0001304,2]
[353155725,1739614261910,-500.0,0.0001304,2]
[353155726,1739614261920,-500.0,0.0001304,2]
[353155727,1739614261930,-500.0,0.0001304,2]
[353155728,1739614261940,-500.0,0.0001304,2]
[353155729,1739614261950,-500.0,0.0001304,2]
[353155730,1739614261960,-500.0,0.0001304,2]
[353155731,1739614261970,-500.0,0.0001304,2]
[353155732,1739614261980,-500.0,0.0001304,2]
[353155733,1739614261990,-313.64,0.0001304,2]
[353155734,1739614261999,-500.0,0.0001304,2]
[353155735,1739614262010,-460.28,0.0001304,2]
[353155736,1739614262019,-500.0,0.0001304,2]
[353155737,1739614262029,-550.98,0.0001304,2]
[353155738,1739614262039,-500.0,0.0001304,2]
[353155739,1739614262049,-433.76,0.0001304,2]
[353155740,1739614262059,-188.04,0.0001304,2]
[353155741,1739614262069,-500.0,0.0001304,2]
[353155742,1739614262079,-612.04,0.0001304,2]
[353155743,1739614262090,-500.0,0.0001304,2]
[353155744,1739614262100,-500.0,0.0001304,2]
[353155745,1739614262110,-500.0,0.0001304,2]
[353155746,1739614262121,-208.3,0.0001304,2]
[353155747,1739614262130,-500.0,0.0001304,2]
[353155748,1739614262141,-248.22,0.0001304,2]
[353155749,1739614262153,-500.0,0.0001304,2]
[353155750,1739614262162,-500.0,0.0001304,2]
[353155751,1739614262173,-578.36,0.0001304,2]
[353155752,1739614262183,-500.0,0.0001304,2]
[353155753,1739614262192,-414.42,0.0001304,2]
[353155754,1739614262203,-563.52,0.0001304,2]
[353155755,1739614262213,-500.0,0.0001304,2]
[353155756,1739614262223,-500.0,0.0001304,2]
[353155757,1739614262234,-500.0,0.0001304,2]
[353155758,1739614262243,-500.0,0.0001304,2]
[353155759,1739614262254,-500.0,0.0001304,2]
[353155760,1739614262264,-244.6,0.0001304,2]
[353155761,1739614262274,-500.0,0.0001304,2]
[353155762,1739614262284,-500.0,0.0001304,2]
[353155763,1739614262294,-416.98,0.0001304,2]
[353155764,1739614262304,-500.0,0.0001304,2]
[353155765,1739614262313,-500.0,0.0001304,2]
[353155766,1739614262324,-500.0,0.0001304,2]
[353155767,1739614262334,-500.0,0.0001304,2]
[353155768,1739614262344,-500.0,0.0001304,2]
[353155769,1739614262353,-500.0,0.0001304,2]
[353155770,1739614262363,-500.0,0.0001304,2]
[353155771,1739614262372,-500.0,0.0001304,2]
[353155772,1739614262382,-620.04,0.0001304,2]
[353155773,1739614262395,-500.0,0.0001304,2]
[353155774,1739614262405,-298.13,0.0001304,2]
[353155775,1739614262417,-500.0,0.0001304,2]
[353155776,1739614262426,-529.76,0.0001304,2]
[353155777,1739614262436,-402.42,0.0001304,2]
[353155778,1739614262448,-500.0,0.0001304,2]
[353155779,1739614262458,-340.76,0.0001304,2]
[353155780,1739614262468,-500.0,0.0001304,2]
[353155781,1739614262479,-584.34,0.0001304,2]
[353155782,1739614262488,-500.0,0.0001304,2]
[353155783,1739614262498,-457.7,0.0001304,2]
[353155784,1739614262508,-500.0,0.0001304,2]
[353155785,1739614262518,-500.0,0.0001304,2]
[353155786,1739614262527,-398.94,0.0001304,2]
[353155787,1739614262537,-500.0,0.0001304,2]
[353155788,1739614262547,-500.0,0.0001304,2]
[353155789,1739614262556,-453.25,0.0001304,2]
[353155790,1739614262565,-500.0,0.0001304,2]
[353155791,1739614262575,-500.0,0.0001304,2]
[353155792,1739614262586,-500.0,0.0001304,2]
[353155793,1739614262596,-500.0,0.0001304,2]
[353155794,1739614262606,-500.0,0.0001304,2]
[353155795,1739614262617,-500.0,0.0001304,2]
[353155796,1739614262626,-500.0,0.0001304,2]
[353155797,1739614262637,-500.0,0.0001304,2]
[353155798,1739614262646,-500.0,0.0001304,2]
[353155799,1739614262656,-1003.21,0.0001304,2]
[353155800,1739614262666,-500.0,0.0001304,2]
[353155801,1739614262676,-500.0,0.0001304,2]
[353155802,1739614262686,-500.0,0.0001304,2]
[353155803,1739614262695,-500.0,0.0001304,2]
[353155804,1739614262705,-500.0,0.0001304,2]
[353155805,1739614262714,-500.0,0.0001304,2]
[353155806,1739614262724,-500.0,0.0001304,2]
[353155807,1739614262733,-636.66,0.0001304,2]
[353155808,1739614262743,-541.55,0.0001304,2]
[353155809,1739614262752,-500.0,0.0001304,2]
[353155810,1739614262762,-1044.13,0.0001304,2]
[353155811,1739614262771,-500.0,0.0001304,2]
[353155812,1739614262781,-2360.06,0.0001304,2]
[353155813,1739614262791,-500.0,0.0001304,2]
[353155814,1739614262801,-424.42,0.0001304,2]
[353155815,1739614262811,-560.21,0.0001304,2]
[353155816,1739614262821,-500.0,0.0001304,2]
[353155817,1739614262830,-500.0,0.0001304,2]
[353155818,1739614262840,-500.0,0.0001304,2]
[353155819,1739614262849,-748.23,0.0001304,2]
[353155820,1739614262859,-500.0,0.0001304,2]
[353155821,1739614262870,-500.0,0.0001304,2]
[353155822,1739614262879,-500.0,0.0001304,2]
[353155823,1739614262889,-500.0,0.0001304,2]
[353155824,1739614262899,-500.0,0.0001304,2]
[353155825,1739614262909,-500.0,0.0001304,2]
[353155826,1739614262919,-500.0,0.0001304,2]
[353155827,1739614262929,-500.0,0.0001304,2]
[353155828,1739614262939,-500.0,0.0001304,2]
[353155829,1739614262948,-500.0,0.0001304,2]
[353155830,1739614262958,-510.98,0.0001304,2]
[353155831,1739614262967,-500.0,0.0001304,2]
[353155832,1739614262977,-262.91,0.0001304,2]
[353155833,1739614262987,-649.67,0.0001304,2]
[353155834,1739614262996,-500.0,0.0001304,2]
[353155835,1739614263006,-500.0,0.0001304,2]
[353155836,1739614263016,-500.0,0.0001304,2]
[353155837,1739614263026,-500.0,0.0001304,2]
[353155838,1739614263036,-512.77,0.0001304,2]
[353155839,1739614263046,-791.07,0.0001304,2]
[353155840,1739614263056,-195.93,0.0001304,2]
[353155841,1739614263067,-500.0,0.0001304,2]
[353155842,1739614263078,-500.0,0.0001304,2]
[353155843,1739614263088,-500.0,0.0001304,2]
[353155844,1739614263099,-327.41,0.0001304,2]
[353155845,1739614263109,-389.38,0.0001304,2]
[353155846,1739614263118,-500.0,0.0001304,2]
[353155847,1739614263128,-628.58,0.0001304,2]
[353155848,1739614263139,-500.0,0.0001304,2]
[353155849,1739614263149,-500.0,0.0001304,2]
[353155850,1739614263159,-500.0,0.0001304,2]
[353155851,1739614263168,-327.7471412,0.0001304,2]
[353155852,1739614263178,-861.68,0.0001304,2]
[353155853,1739614263189,-446.39,0.0001304,2]
[353155854,1739614263198,-159.91,0.0001304,2]
[353155855,1739614263209,-500.0,0.0001304,2]
[353155856,1739614263219,-348.38,0.0001304,2]
[353155857,1739614263229,-500.0,0.0001304,2]
[353155858,1739614263239,-500.0,0.0001304,2]
[353155859,1739614263249,-997.83,0.0001304,2]
[353155860,1739614263259,-655.17,0.0001304,2]
[353155861,1739614263269,-500.0,0.0001304,2]
[353155862,1739614263278,-500.0,0.0001304,2]
[353155863,1739614263288,-500.0,0.0001304,2]
[353155864,1739614263298,-500.0,0.0001304,2]
[353155865,1739614263308,-500.0,0.0001304,2]
[353155866,1739614263317,-736.8,0.0001304,2]
[353155867,1739614263327,-452.42,0.0001304,2]
[353155868,1739614263337,-500.0,0.0001304,2]
[353155869,1739614263347,-500.0,0.0001304,2]
[353155870,1739614263356,-500.0,0.0001304,2]
[353155871,1739614263366,-500.0,0.0001304,2]
[353155872,1739614263376,-500.0,0.0001304,2]
[353155873,1739614263386,-500.0,0.0001304,2]
[353155874,1739614263400,-500.0,0.0001304,2]
[353155875,1739614263410,-459.04,0.0001304,2]
[353155876,1739614263420,-500.0,0.0001304,2]
[353155877,1739614263431,-500.0,0.0001304,2]